Workbook

Sheet Strona 1
D2: Wypełnia US Oddział terenowy | K2: Nr formularza | V2: strona 1
C3: GŁÓWNY URZĄD STATYSTYCZNY, al. Niepodległości 208, 00-925 Warszawa www.stat.gov.pl
B5: Nazwa i adres jednostki sprawozdawczej
H6: F-01/I-01
S7: Starostwo Powiatowe
H8: Sprawozdanie o przychodach, | T8: w Wodzisławiu Śl.
H9: kosztach i wyniku finansowym
H10: oraz o nakładach na środki trwałe
H11: za okres od początku roku
H13: do końca | I13: maja 2018 | R13: Przekazać/wysłać w terminie do 20 dnia każego miesiąca
B15: Obowiązek przekazywania danych statystycznych wynika z art. 31 ustawy z dnia 29 czerwca 1995 r. o statystyce publicznej (Dz.U. Nr 88 poz.439 z późn. zm. oraz rozporządzenia Rady Ministrów z dnia 5 września 2006 r. w sprawie programu badań statystycznych statystyki publicznej na rok 2007 (Dz.U. Nr 170, poz.1219)
C16: kancelaria@zoz.wodzislaw.pl
C17: e-mail sekretariatu dyrektora/prezesa firmy - WYPEŁNIAĆ WIELKIMI LITERAMI
B18: Numer identyfikacyjny - REGON (wpisywać od pierwszej kratki z lewej strony) | N18: 0 | O18: 0 | P18: 0 | Q18: 3 | R18: 1 | S18: 2 | T18: 4 | U18: 5 | V18: 5
B20: 1. Symbol rodzaju podstawowej działalności wg PKD | K20: 8 | L20: 6 | M20: 1 | N20: 0 | O20: z
B22: 2. Jednostki, których rok obrotowy nie pokrywa się z rokiem kalendarzowym, sporządzają sprawozdanie za rok kalendarzowy.
B23: Proszę podawać dane według stanu na koniec każdego kwartału w ramach roku kalendarzowego.
B25: 3. Podmioty posiadające oddziały (zakłady) poza terytorium Rzeczypospolitej Polskiej przekazują sprawozdanie łącznie
B26: z danymi z tych oddziałów (zakładów).
B28: 4. Jednostki kończące lub zawieszające działalność składają sprawozdanie z danymi na dzień zakończenia działalności.
B30: 5. Czy kapitał zagraniczny posiada udziały w kapitale zakładowym jednostki? | S30: 1 tak | Y30: 2 nie
B31: (proszę zaznaczyć właściwą odpowiedź)
B33: 6. Czy jednostka sporządza sprawozdanie finansowe zgodnie z Międzynarodowymi Standardami Rachunkowości? | S33: 1 tak | Y33: 2 nie
B34: (proszę zaznaczyć właściwą odpowiedź) - patrz objaśnienia do F01/I01
B36: Ze względu na przystosowanie formularza do odczytu optycznego, GUS prosi sporządzających sprawozdanie o
B37: przestrzeganie następujących zasad jego wypełniania:
B39: >> wypełnić starannie i czytelnie tylko długopisem koloru czarnego,
B40: >> w jedną kratkę wpisywać tylko jedną cyfrę, która w całości musi znaleźć się w obębie białego pola tej kratki, nie
B41: stosować żadnych skreśleń, a w przypadku pomyłki, dokładnie usunąć błędny zapis korektorem i wpisać w tym
B42: miejscu zapis poprawny,
B43: >> wszystkie liczby należy wpisywać cyframi arabskimi z dokładnością do tysiąca zł (bez znaku po przecinku),
B44: >> wpisywać liczby począwszy od pierwszej kratki z lewej strony, pozostawiać puste, niewypełnione kratki w sytuacji,
B45: gdy na wpisanie liczby potrzeba mniej kratek niż przewidziano do wypełnienia,
B46: >> pozostawiać wszystkie puste kratki, w przypadku braku informacji liczbowej (jeżeli zjawisko nie występuje), nie
B47: należy wpisywać zer lub kresek,
B48: >> nie dokonywać dodatkowych zapisów na marginesach, a szczególnie w rogach formularza, dbać aby formularz
B49: w czasie wypełniania nie uległ zabrudzeniom i uszkodzeniom, przesyłać do urzędów statystycznych orginały
B50: sprawozdań a nie kopie,
B51: >> dane z formularza będą rejestrowane przez urządzenia automatycznego odczytu optycznego (OCR), które wymaga-
B52: ją odpowiedniej staranności i precyzji w wypełnianiu pól formularza.
C55: Michalina Rogala | H55: Wodzisław Śl. 19-06-2018
C57: (imię, nazwisko i telefon osoby, sporządzającej sprawozdanie) | H57: (miejscowość, data) | N57: (pieczątka imienna i podpis osoby działającej w imieniu sprawozdawcy)
H65: 2

Sheet Strona 2
B2: Część I. PRZYCHODY, KOSZTY I WYNIK FINANSOWY (w zł) | F2: strona 2
B4: Dział 1. Rachunek zysków i strat
B5: Wyszczególnienie | F5: Kwota w zł
B6: 0 | F6: 1
B7: A. Przychody netto ze sprzedaży i zrównanie z nimi (w. 02+04+05+06) | E7: 01 | F7: =F9 -> 35668854.02
B9: z tego | C9: przychody netto ze sprzedaży produktów | E9: 02 | F9: 35668854.02
C11: w tym sprzedaż na eksport | E11: 03
C13: zmiana stanu produktów (zwiększenie - wartość dodatnia, zmniejszenie - wartość ujemna) (+,-) | E13: 04
C15: koszt wytworzenia produktów na własne potrzeby | E15: 05
C17: przychody netto ze sprzedaży towarów i materiałów | E17: 06
C19: w tym sprzedaż na eksport | E19: 07
B21: B. Koszty działalności operacyjnej (w. 09+10+12+14+16+18+21+23) | E21: 08 | F21: =F23+F25+F29+F33+F37+F41+F47 -> 37734592
B23: z tego | C23: amortyzacja | E23: 09 | F23: 1268892
C25: zużycie materiałów i energii | E25: 10 | F25: 5913684
C27: w tym energii | E27: 11 | F27: 1145610
C29: usługi obce | E29: 12 | F29: 8161082
C31: w tym zakupione w celu odsprzedaży (podwykonawstwo) | E31: 13 | F31: 0
C33: podatki i opłaty | E33: 14 | F33: 543192
C35: w tym podatek akcyzowy | E35: 15 | F35: 0
C37: wynagrodzenia | E37: 16 | F37: 17854736
C39: w tym ze stosunku pracy | E39: 17 | F39: 17151462
C41: ubezpieczenia społeczne i inne świadczenia | E41: 18 | F41: 3845587
C43: w tym | D43: składki z tytułu ubezpieczeń społecznych | F43: 3289655
D45: wydatki z tytułu szkolenia pracowników | E45: 20 | F45: 21034
C47: pozostałe koszty rodzajowe | E47: 21 | F47: 147419
C49: w tym podróże służbowe | E49: 22 | F49: 8309
C51: wartość sprzedanych towarów i materiałów | E51: 23
B63: © www.signform.pl Sp. z o.o., e-mail: biuro@signform.pl, tel. (0-22) 337-11-51, fax: (0-22) 337-11-52

Sheet Strona 3
D2: Wpełnia US Oddział terenowy | G2: Nr formularza | Q2: strona 3
B4: Numer identyfikacyjny - REGON (wpisywać od pierwszej kratki z lewej strony)
B7: Dział 1. Rachunek zysków i strat (cd.)
B8: Wyszczególnienie | L8: Kwota w zł
B9: 0 | L9: 1
B10: C1. Zysk ze sprzedaży (w. 01-08)>0 | K10: 24 | L10: =IF(AND('Strona 2'!F7="",'Strona 2'!F21=""),"",IF(SUM('Strona 2'!F7,-'Strona 2'!F21)>0,SUM('Strona 2'!F7,-'Strona 2'!F21),0)) -> 0
B12: C2. Strata ze sprzedaży (w. 01-08)<0 | K12: 25
B14: D. Pozostałe przychody operacyjne (w.27+28+29) | K14: 26 | L14: =L16+L18+L20 -> 1695452
B16: z tego | D16: zysk ze zbycia niefinansowych aktywów trwałych | K16: 27
D18: dotacje | K18: 28
D20: inne przychody operacyjne | K20: 29 | L20: 1695452
D22: w tym rozwiązane rezerwy | K22: 30
B24: E. Pozostałe koszty operacyjne (w. 32+33+34) | K24: 31 | L24: =L26+L28+L30 -> 241131
B26: z tego | C26: strata ze zbycia niefinansowanych aktywów trwałych | K26: 32
C28: aktualizacja wartości aktywów niefinansowych | K28: 33
C30: inne koszty operacyjne | K30: 34 | L30: 241131
C32: w tym | D32: rezerwy na przyszłe zobowiązania | K32: 35
D34: odpisane wierzytelności (w wyniku postępowań upadłościowych, układowych i naprawczych) | K34: 36
B36: F1. Zysk na działalności operacyjnej (w. 01-08+26-31)>0 | K36: 37 | L36: =IF(AND('Strona 2'!F7="",'Strona 2'!F21="",L14="",L24=""),"",IF((SUM('Strona 2'!F7,L14)-SUM('Strona 2'!F21,L24))<0,0,(SUM('Strona 2'!F7,L14)-SUM('Strona 2'!F21,L24)))) -> 0
B38: F2. Strata na działalności operacyjnej (w. 01-08+26-31)<0 | K38: 38 | L38: =IF(AND('Strona 2'!F7="",'Strona 2'!F21="",L14="",L24=""),"",IF((-SUM('Strona 2'!F7,L14)+SUM('Strona 2'!F21,L24))<0,0,(-SUM('Strona 2'!F7,L14)+SUM('Strona 2'!F21,L24)))) -> 611416.98
B40: G. Przychody finansowe (w. 40+41+43+44+45) | K40: 39 | L40: 9863
B42: z tego | D42: dywidendy i udziały w zysku | K42: 40 | L42: 0
D44: odsetki | K44: 41 | L44: 9863
D46: w tym od udzielonych pożyczek i lokat terminowych | K46: 42
D48: zysk ze zbycia inwestycji | K48: 43
D50: aktualizacja wartości inwestycji | K50: 44
D52: inne | K52: 45
D54: w tym nadwyżka dodatnich różnic kursowych nad ujemnymi | K54: 46
B62: © www.signform.pl Sp. z o.o., e-mail: biuro@signform.pl, tel. (0-22) 337-11-51, fax: (0-22) 337-11-52

Sheet Strona 4
B2: Dział 1. Rachunek zysków i strat (dok.) | E2: strona 4
B3: Wyszczególnienie | E3: Kwota w zł
B4: 0 | E4: 1
B5: H. Koszty finansowe (w. 48+50+51+52) | D5: 47 | E5: =E7+E15 -> 480130
B7: z tego | C7: odsetki | D7: 48 | E7: 418735
C9: w tym odsetki od kredytów i pożyczek | D9: 49 | E9: 167964
C11: strata ze zbycia inwestycji | D11: 50
C13: aktualizacja wartości inwestycji | D13: 51
C15: inne | D15: 52 | E15: 61395
C17: w tym nadwyżka ujemnych różnic kursowych nad dodatnimi | D17: 53
B19: I1. Zysk z działalności gospodarczej (w. 01-08+26-31+39-47)>0 | D19: 54 | E19: =IF(AND('Strona 2'!F7="",'Strona 2'!F21="",'Strona 3'!L14="",'Strona 3'!L24="",'Strona 3'!L40="",E5=""),"",IF((SUM('Strona 2'!F7,'Strona 3'!L14,'Strona 3'!L40)-SUM('Strona 2'!F21,'Strona 3'!L24,E5))<0,0,(SUM('Strona 2'!F7,'Strona 3'!L14,'Strona 3'!L40)-SUM('Strona 2'!F21,'Strona 3'!L24,E5)))) -> 0
B21: I2. Strata z działalności gospodarczej (w. 01-08+26-31+39-47)<0 | D21: 55 | E21: =IF(AND('Strona 2'!F7="",'Strona 2'!F21="",'Strona 3'!L14="",'Strona 3'!L24="",'Strona 3'!L40="",E5=""),"",IF((-SUM('Strona 2'!F7,'Strona 3'!L14,'Strona 3'!L40)+SUM('Strona 2'!F21,'Strona 3'!L24,E5))<0,0,(-SUM('Strona 2'!F7,'Strona 3'!L14,'Strona 3'!L40)+SUM('Strona 2'!F21,'Strona 3'!L24,E5)))) -> 1081683.98
B23: J1. Zyski nadzwyczajne | D23: 56
B25: J2. Straty nadzwyczajne | D25: 57
B27: K1. Zysk brutto (w. 01-08+26-31+39-47+56-57)>0 | D27: 58 | E27: =IF(AND('Strona 2'!F7="",'Strona 2'!F21="",'Strona 3'!L14="",'Strona 3'!L24="",'Strona 3'!L40="",E5="",E23="",E25=""),"",IF((SUM('Strona 2'!F7,'Strona 3'!L14,'Strona 3'!L40,E23)-SUM('Strona 2'!F21,'Strona 3'!L24,E5,E25))<0,0,(SUM('Strona 2'!F7,'Strona 3'!L14,'Strona 3'!L40,E23)-SUM('Strona 2'!F21,'Strona 3'!L24,E5,E25)))) -> 0
B29: K2. Strata brutto (w. 01-08+26-31+39-47+56-57)<0 | D29: 59 | E29: =IF(AND('Strona 2'!F7="",'Strona 2'!F21="",'Strona 3'!L14="",'Strona 3'!L24="",'Strona 3'!L40="",E5="",E23="",E25=""),"",IF((-SUM('Strona 2'!F7,'Strona 3'!L14,'Strona 3'!L40,E23)+SUM('Strona 2'!F21,'Strona 3'!L24,E5,E25))<0,0,(-SUM('Strona 2'!F7,'Strona 3'!L14,'Strona 3'!L40,E23)+SUM('Strona 2'!F21,'Strona 3'!L24,E5,E25)))) -> 1081683.98
B31: L. Podatek dochodowy | D31: 60
B33: z tego | C33: część bieżąca | D33: 61
C35: część odroczona | D35: 62
B37: M. Pozostałe obowiązkowe zmniejszenie zysku (zwiększenie straty) | D37: 63
B39: N1. Zysk netto (w. 01-08+26-31+39-47+56-57-60-63)>0 | D39: 64 | E39: =IF(AND('Strona 2'!F7="",'Strona 2'!F21="",'Strona 3'!L14="",'Strona 3'!L24="",'Strona 3'!L40="",E5="",E23="",E25="",E31="",E37=""),"",IF((SUM('Strona 2'!F7,'Strona 3'!L14,'Strona 3'!L40,E23)-SUM('Strona 2'!F21,'Strona 3'!L24,E5,E25,E31,E37))<0,0,(SUM('Strona 2'!F7,'Strona 3'!L14,'Strona 3'!L40,E23)-SUM('Strona 2'!F21,'Strona 3'!L24,E5,E25,E31,E37)))) -> 0
B41: N2. Strata netto (w. 01-08+26-31+39-47+56-57-60-63)<0 | D41: 65 | E41: =IF(AND('Strona 2'!F7="",'Strona 2'!F21="",'Strona 3'!L14="",'Strona 3'!L24="",'Strona 3'!L40="",E5="",E23="",E25="",E31="",E37=""),"",IF((-SUM('Strona 2'!F7,'Strona 3'!L14,'Strona 3'!L40,E23)+SUM('Strona 2'!F21,'Strona 3'!L24,E5,E25,E31,E37))<0,0,(-SUM('Strona 2'!F7,'Strona 3'!L14,'Strona 3'!L40,E23)+SUM('Strona 2'!F21,'Strona 3'!L24,E5,E25,E31,E37)))) -> 1081683.98
B51: © www.signform.pl Sp. z o.o., e-mail: biuro@signform.pl, tel. (0-22) 337-11-51, fax: (0-22) 337-11-52

Sheet Strona 5
J2: strona 5
B3: Dane uzupełniające (w zł)
B4: Wyszczególnienie | I4: Kwota w zł
B5: 0 | I5: 1
B6: Przychody ze sprzedaży traktowane jako eksport | H6: 66
B8: Przychody ze sprzedaży opodatkowane stawką VAT 23% | H8: 67 | I8: 863815
B10: Przychody ze sprzedaży opodatkowane stawką VAT 8% | H10: 68 | I10: 16055
B12: Przychody ze sprzedaży opodatkowane innymi stawkami, w tym sprzedaż w kraju ze stawką VAT 0% | H12: 69
B14: Przychody ze sprzedaży zwolnione od podatku VAT | H14: 70 | I14: 34788984
B16: Z wiersza 01 dz. 1 przypada na dotacje do działalności podstawowej | H16: 71
B18: Z wiersza 02 dz. 1 przypada na dotacje do produktów (wyrobów i usług) | H18: 72
B20: Wartość zakupów z importu ogółem | H20: 73
B22: w tym | C22: import surowców, materiałów i półfabrykatów na cele produkcyjne | H22: 74
C24: import towarów przeznaczonych do dalszej odsprzedaży | H24: 75
B26: Z wiersza 08 dz. 1 przypada na składki z tytułu ubezpieczeń majątkowych i osobowych | H26: 76 | I26: 135646
B28: Z wiersza 15 dz. 1 przypada na podatek akcyzowy ze sprzedaży produktów | H28: 77
B30: Przeciętne zatrudnienie w przeliczeniu na pełne etaty | H30: 78 | I30: 859
B32: Liczba pracujących w osobach | H32: 79 | I32: 878
B34: Wiersze 66-77 w kwotach narastających. Wiersze 66-70 dotyczą sprzedaży wykazanej w wierszach 02, 06, 26, a wiersz 77 - w wierszu 02.
B36: Dział 2. Aktywa obrotowe i trwałe (w zł)
B37: Wyszczególnienie | G37: Stan na 01.01.2011 r. | J37: Stan na koniec okresu
J38: sprawozdawczego
B39: 0 | G39: 1 | J39: 2
B40: Zapasy ogółem | F40: 01 | J40: =IF(AND(J42="",J44="",J46="",J48=""),"",SUM(J42,J44,J46,J48)) -> 1216964
B42: w tym | C42: materiały | F42: 02 | J42: 1216964
C44: półprodukty i produkty w toku | F44: 03
C46: produkty gotowe | F46: 04
C48: towary | F48: 05
B50: Należności krótkoterminowe (w. 07+09) | F50: 06 | J50: =IF(AND(J52="",J56=""),"",SUM(J52,J56)) -> 8381600
B52: z tego | C52: należności od jednostek powiązanych | F52: 07
C54: w tym z tytułu dostaw i usług (bez względu na okres wymagalności zapłaty) | F54: 08
C56: należności od pozostałych jednostek | F56: 09 | J56: =J58+J60 -> 8381600
C58: w tym | D58: z tytułu dostaw i usług (bez względu na okres wymagalności zapłaty) | F58: 10 | J58: 7851585
D60: z tytułu podatków, dotacji, ceł, ubezpieczeń społecznych i innych świadczeń | F60: 11 | J60: 530015
B63: © www.signform.pl Sp. z o.o., e-mail: biuro@signform.pl, tel. (0-22) 337-11-51, fax: (0-22) 337-11-52

Sheet Strona 6
B3: Dział 2. Aktywa obrotowe i trwałe (w zł) (dok.) | H3: strona 6
B4: Wyszczególnienie | F4: Stan na 01.01.2011 r. | H4: Stan na koniec okresu sprawozdawczego
B6: 0 | F6: 1 | H6: 2
B7: Inwestycje krótkoterminowe | E7: 12 | H7: =SUM(H9) -> 1120025
B9: w tym | C9: krótkoterminowe aktywa finansowe | E9: 13 | H9: 1120025
C11: z tego | D11: w jednostkach powiązanych | E11: 14
D13: w pozostałych jednostkach | E13: 15
D15: środki pieniężne i inne aktywa pieniężne | E15: 16 | H15: 1120025
B17: Krótkoterminowe rozliczenia międzyokresowe | E17: 17 | H17: 592997
B19: Aktywa obrotowe (w. 01+06+12+17) | E19: 18 | F19: =IF(AND('Strona 5'!G40="",'Strona 5'!G50="",F7="",F17=""),"",SUM('Strona 5'!G40,'Strona 5'!G50,F7,F17)) ->  | H19: ='Strona 5'!J40+'Strona 5'!J50+H7+H17 -> 11311586
B21: Aktywa trwałe (Aktywa razem - Aktywa obrotowe) | E21: 19 | H21: 21420756
B23: w tym | C23: należności długoterminowe ogółem | E23: 20
C25: inwestycje długoterminowe ogółem | E25: 21
B28: Dział 3. Wybrane źródła finansowania majątku (w zł)
B29: Wyszczególnienie | H29: Stan na koniec okresu sprawozdawczego
B31: 0 | H31: 1
B32: Zobowiązania i rezerwy na zobowiązania (w. 02+04+09+19) | G32: 01 | H32: =IF(AND(H34="",H38="",'Strona 7'!H7="",'Strona 7'!H27=""),"",SUM(H34,H38,'Strona 7'!H7,'Strona 7'!H27)) -> 41151903.83
B34: Rezerwy na zobowiązania | G34: 02
B36: w tym z tytułu odroczonego podatku dochodowego | G36: 03
B38: Zobowiązania długoterminowe (w. 05+06) | G38: 04 | H38: =IF(AND(H40="",H42=""),"",SUM(H40,H42)) -> 16024838.83
B40: z tego | C40: wobec jednostek powiązanych | G40: 05
C42: wobec pozostałych jednostek | G42: 06 | H42: =H44+H46 -> 16024838.83
C44: w tym | D44: z tytułu kredytów i pożyczek | G44: 07 | H44: 8642904.83
D46: z tytułu innych długoterminowych | G46: 08 | H46: 7381934
B60: © www.signform.pl Sp. z o.o., e-mail: biuro@signform.pl, tel. (0-22) 337-11-51, fax: (0-22) 337-11-52

Sheet Strona 7
H2: strona 7
B3: Dział 3. Wybrane źródła finansowania majątku (w zł) (dok.)
B4: Wyszczególnienie | H4: Stan na koniec okresu sprawozdawczego
B6: 0 | H6: 1
B7: Zobowiązania krótkoterminowe bez funduszy specjalnych (w. 10+12) | G7: 09 | H7: =SUM(H9+H13) -> 25127065
B9: z tego | C9: wobec jednostek powiązanych | G9: 10
C11: w tym z tytułu dostaw i usług (bez względu na okres wymagalności zapłaty) | G11: 11
C13: wobec pozostałych jednostek | G13: 12 | H13: =SUM(H15+H17+H19+H21+H23+H25) -> 25127065
C15: w tym | D15: kredyty i pożyczki | G15: 13 | H15: 2391015
D17: z tytułu emisji dłużnych papierów wartościowych | G17: 14
D19: z tytułu dostaw i usług (bez względu na okres wymagalności zapłaty) | G19: 15 | H19: 15474967
D21: wadia | G21: 16 | H21: 122914
D23: z tytułu podatków, ceł, ubezpieczeń i innych świadczeń | G23: 17 | H23: 4441022
D25: z tytułu wynagrodzeń | G25: 18 | H25: 2697147
B27: Rozliczenia międzyokresowe | G27: 19
B31: Dział 4. Podatek od towarów i usług (VAT) oraz podatek akcyzowy (w zł)
B32: Wyszczególnienie | H32: Kwota w zł
B34: 0 | H34: 1
B35: Podatek VAT należny ogółem | G35: 01
B37: Podatek VAT naliczony | G37: 02
B39: Kwota podatku VAT podlegającego wpłacie do budżetu | G39: 03 | H39: 204866
B41: Kwota podatku VAT do zwrotu | G41: 04
B43: Podatek akcyzowy ogółem | G43: 05
B45: w tym | C45: od wyrobów krajowych (producent) | G45: 06
C47: od towarów sprowadzanych z zagranicy | G47: 07
B51: Część II. NAKŁADY NA ŚRODKI TRWAŁE Dział 1. Środki trwałe w budowie - nowo rozpoczęte w okresie sprawozdawczym
B53: Liczba nowo rozpoczętych | F53: Wartość kosztorysowa nowo rozpoczętych (w tys.zł)
B54: ogółem | E54: w tym polegających na ulepszeniu a) | F54: ogółem | G54: w tym polegających na ulepszeniu a)
B56: 1 | E56: 2 | F56: 3 | G56: 4
B59: a) Przez ulepszenie należy rozumieć przebudowę, rozbudowę, rekonstrukcję lub modernizację środka trwałego.
B62: © www.signform.pl Sp. z o.o., e-mail: biuro@signform.pl, tel. (0-22) 337-11-51, fax: (0-22) 337-11-52

Sheet Strona 8
C3: Dział 2. Nakłady na budowę, ulepszenie i nabycie środków trwałych | H3: strona 8
C4: oraz nabycie wartości niematerialnych i prawnych (w tys. zł)
B5: Wyszczególnienie | F5: Nakłady w okresie sprawozdawczym na:
F6: nowe obiekty majątkowe (budowę, zakup) oraz ulepszenia a) istniejących | H6: zakup używanych środków trwałych
F8: ogółem | G8: w tym z importu b)
B9: 0 | F9: 1 | G9: 2 | H9: 3
B10: Ogółem nakłady (w. 02+04+07+08+09+11+12) | E10: 01 | F10: =F16+F23+F27 -> 374361 | G10: =IF(AND(G23="",G25="",G27="",G31="",G35=""),"",SUM(G23,G25,G27,G31,G35)) ->  | H10: =IF(AND(H12="",H16="",H23="",H25="",H27=""),"",SUM(H12,H16,H23,H25,H27)) -> 
B12: w tym | C12: grunty (grupa 0) | E12: 02
C14: w tym prawo użytkowania wieczystego | E14: 03
C16: budynki i lokale oraz obiekty inżynierii lądowej i wodnej (grupy 1-2) | E16: 04 | F16: 149374
C18: w tym | D18: spółdzielcze własnościowe prawo do lokalu mieszkalnego i użytkowego | E18: 05
D21: melioracje szczegółowe (rodzaj 226) | E21: 06
C23: maszyny i urządzenia techniczne (grupy 3-6) | E23: 07 | F23: 4115
C25: środki transportu (grupa 7) | E25: 08 | F25: 0
C27: pozostałe środki trwałe (grupa 8 i 9) | E27: 09 | F27: 220872
C29: w tym narzędzia, przyrządy, ruchomości i wyposażenie (grupa 8) | E29: 10
B31: Koszty obsługi zobowiązań zaciągniętych w celu sfinansowania zakupu budowy lub ulepszenia środka trwałego oraz związane z nimi różnice kursowe w okresie sprawozdawczym | E31: 11 | H31: a) Przez ulepszenie należy rozumieć przebudowę, roz- budowę, rekonstrukcję lub modernizację środka trwałego. b) Łącznie z wydatkami na środki trwałe wyprodukowane poza granicami kraju, a zakupione w kraju od dealera lub pośrednika.
B35: Pozostałe nakłady związane z budową środka trwałego, które po jej zakończeniu nie będą stanowiły środka trwałego | E35: 12
B38: Z wartości ogółem przypada na roboty budowlano-montażowe | E38: 13
G39: Dział 3. Leasing w tys. zł (bez znaku po przecinku)
B40: Nakłady na wartości niematerialne i prawne - ogółem | E40: 14
G41: Wypełnia leasingobiorca | H41: Wypełnia leasingodawca
B42: w tym | C42: autorskie prawa majątkowe, prawa pokrewne, licencje i koncesje | E42: 15 | G42: Wartość nowych środków trwałych przyjętych w okresie sprawozdawczym do odpłatnego używania na mocy umowy o leasing: | H42: Wartość środków trwałych zakupionych w okresie sprawozdawczym z przeznaczeniem do oddania w leasing:
C44: w tym | D44: oprogramowanie komputerowe | E44: 16
D46: dokumentacja i projekty zagospodarowania złóż oraz oceny eksploatacji złóż, prawa eksploatacji gruntu związanego ze złożami | E46: 17 | G46: 1 | H46: 2
G47: - finansowy | H47: - finansowy
I48: 1
D50: koncesje i licencje (bez oprogra- mowania komputerowego) | E50: 18 | G50: w tym środki transportu (grupa 7) | H50: w tym środki transportu (grupa 7)
C52: prawa do wynalazków, patentów znaków użytkowych oraz zdobniczych | E52: 19 | I52: 2
C54: koszty zakończonych prac rozwojowych | E54: 20 | G54: - operacyjny | H54: - operacyjny
C56: w tym koszty prac rozwojowych związanych z eksploatacją złóż | E56: 21 | I56: 3
C58: wartość firmy | E58: 22
G59: w tym środki transportu (grupa 7) | H59: w tym środki transportu (grupa 7)
B60: Nakłady na nieruchomości oraz prawa zaliczane do inwestycji | E60: 23
I61: 4
